[Event "*** SCC Grand Prix: Titled Tuesday Blitz"]
[Site "Chess.com"]
[Date "2020.06.02"]
[Round "4"]
[White "731291"]
[Black "imdarealist"]
[Result "0-1"]
[WhiteElo "2564"]
[BlackElo "2266"]
[TimeControl "180+1"]
[EndTime "10:39:52 PDT"]
[Termination "imdarealist won by checkmate"]

1. d4 {[%clk 0:03:00.9]} 1... d5 {[%clk 0:02:58.7]} 2. Nf3 {[%clk 0:03:00.6]}
2... Nf6 {[%clk 0:02:57.9]} 3. c4 {[%clk 0:03:00.1]} 3... e6 {[%clk 0:02:57.9]}
4. g3 {[%clk 0:02:58.9]} 4... Bb4+ {[%clk 0:02:55.9]} 5. Bd2 {[%clk 0:02:57.4]}
5... Be7 {[%clk 0:02:56.3]} 6. Bg2 {[%clk 0:02:56.8]} 6... O-O {[%clk
0:02:56.3]} 7. O-O {[%clk 0:02:56.8]} 7... c6 {[%clk 0:02:56.1]} 8. Bg5 {[%clk
0:02:56.8]} 8... Nbd7 {[%clk 0:02:50.5]} 9. Nbd2 {[%clk 0:02:56.9]} 9... b6
{[%clk 0:02:49.6]} 10. Qc2 {[%clk 0:02:55.1]} 10... Bb7 {[%clk 0:02:49.3]} 11.
e4 {[%clk 0:02:51.5]} 11... dxe4 {[%clk 0:02:15.4]} 12. Nxe4 {[%clk 0:02:48.5]}
12... Nxe4 {[%clk 0:02:14.8]} 13. Bxe7 {[%clk 0:02:49.4]} 13... Qxe7 {[%clk
0:02:14.1]} 14. Qxe4 {[%clk 0:02:49.9]} 14... Nf6 {[%clk 0:02:14.4]} 15. Qe3
{[%clk 0:02:45.6]} 15... c5 {[%clk 0:02:11.6]} 16. d5 {[%clk 0:02:39.8]} 16...
Rfe8 {[%clk 0:02:11.7]} 17. Rfe1 {[%clk 0:02:37.8]} 17... Qc7 {[%clk 0:02:03.6]}
18. dxe6 {[%clk 0:02:22.7]} 18... Rxe6 {[%clk 0:02:00.5]} 19. Qb3 {[%clk
0:01:51.2]} 19... Rae8 {[%clk 0:01:57.9]} 20. Rxe6 {[%clk 0:01:45.9]} 20... Rxe6
{[%clk 0:01:58.8]} 21. Re1 {[%clk 0:01:44.8]} 21... Rxe1+ {[%clk 0:01:06.5]} 22.
Nxe1 {[%clk 0:01:45.7]} 22... Bxg2 {[%clk 0:01:06.7]} 23. Nxg2 {[%clk
0:01:44.8]} 23... Qe5 {[%clk 0:01:07]} 24. Ne3 {[%clk 0:01:43.4]} 24... Qe4
{[%clk 0:00:59.4]} 25. Qa4 {[%clk 0:01:28]} 25... Qe7 {[%clk 0:00:44.4]} 26. Qc6
{[%clk 0:01:25.5]} 26... h6 {[%clk 0:00:38.7]} 27. Nf5 {[%clk 0:01:14]} 27...
Qe1+ {[%clk 0:00:37.1]} 28. Kg2 {[%clk 0:01:13.4]} 28... Ne4 {[%clk 0:00:18.9]}
29. Qe8+ {[%clk 0:00:20.2]} 29... Kh7 {[%clk 0:00:17.6]} 30. Ne7 {[%clk
0:00:03.8]} 30... Qxf2+ {[%clk 0:00:12.3]} 31. Kh3 {[%clk 0:00:04.7]} 31... Ng5+
{[%clk 0:00:12.1]} 32. Kh4 {[%clk 0:00:04.9]} 32... Qxh2+ {[%clk 0:00:09.8]} 33.
Kg4 {[%clk 0:00:05.1]} 33... Qe2+ {[%clk 0:00:09.7]} 34. Kh4 {[%clk 0:00:04.6]}
34... Qe4+ {[%clk 0:00:06.9]} 35. g4 {[%clk 0:00:03.2]} 35... Qe1+ {[%clk
0:00:05.3]} 36. Kh5 {[%clk 0:00:03]} 36... Qh1# {[%clk 0:00:05.1]} 0-1

[Event "*** SCC Grand Prix: Titled Tuesday Blitz"]
[Site "Chess.com"]
[Date "2020.06.02"]
[Round "4"]
[White "Semen_Khanin"]
[Black "Reality-Stone"]
[Result "1-0"]
[WhiteElo "2704"]
[BlackElo "2496"]
[TimeControl "180+1"]
[EndTime "10:39:53 PDT"]
[Termination "Semen_Khanin won on time"]

1. e4 {[%clk 0:03:00.9]} 1... e6 {[%clk 0:02:59.1]} 2. d4 {[%clk 0:03:00.5]}
2... d5 {[%clk 0:02:59.1]} 3. e5 {[%clk 0:03:01.4]} 3... c5 {[%clk 0:02:59.1]}
4. c3 {[%clk 0:03:02.3]} 4... Nc6 {[%clk 0:02:59.1]} 5. Nf3 {[%clk 0:03:03]}
5... Qb6 {[%clk 0:02:59.4]} 6. Na3 {[%clk 0:03:03.1]} 6... cxd4 {[%clk
0:02:55.7]} 7. cxd4 {[%clk 0:03:03.4]} 7... Bb4+ {[%clk 0:02:54.7]} 8. Bd2
{[%clk 0:03:04]} 8... Nh6 {[%clk 0:02:37.9]} 9. Nb5 {[%clk 0:02:42.1]} 9... O-O
{[%clk 0:02:20]} 10. a3 {[%clk 0:02:38.3]} 10... Bxd2+ {[%clk 0:02:15]} 11. Qxd2
{[%clk 0:02:38.7]} 11... Bd7 {[%clk 0:02:14]} 12. Bd3 {[%clk 0:02:37.1]} 12...
Nf5 {[%clk 0:02:06.7]} 13. Bxf5 {[%clk 0:02:27.8]} 13... Qxb5 {[%clk 0:01:50.9]}
14. Bd3 {[%clk 0:02:23.7]} 14... Qb6 {[%clk 0:01:50.1]} 15. b4 {[%clk
0:02:02.3]} 15... f5 {[%clk 0:01:34]} 16. Qf4 {[%clk 0:01:43.5]} 16... a5 {[%clk
0:01:20.3]} 17. b5 {[%clk 0:01:42.6]} 17... Ne7 {[%clk 0:01:19.1]} 18. a4 {[%clk
0:01:42.9]} 18... h6 {[%clk 0:01:17.2]} 19. h4 {[%clk 0:01:42.3]} 19... Rac8
{[%clk 0:01:16.4]} 20. Qd2 {[%clk 0:01:37.8]} 20... Be8 {[%clk 0:01:03.6]} 21.
h5 {[%clk 0:01:33.2]} 21... Qc7 {[%clk 0:00:57.8]} 22. Ng1 {[%clk 0:01:23.3]}
22... Qb6 {[%clk 0:00:45.7]} 23. Ne2 {[%clk 0:01:22.5]} 23... Rc7 {[%clk
0:00:40.7]} 24. Rc1 {[%clk 0:01:11.1]} 24... Nc8 {[%clk 0:00:34.8]} 25. Rxc7
{[%clk 0:01:06.3]} 25... Qxc7 {[%clk 0:00:35.7]} 26. Nf4 {[%clk 0:01:06.1]}
26... Bf7 {[%clk 0:00:26.7]} 27. O-O {[%clk 0:01:05.9]} 27... Nb6 {[%clk
0:00:15.9]} 28. Rc1 {[%clk 0:01:00.8]} 28... Nc4 {[%clk 0:00:15.9]} 29. Qe2
{[%clk 0:00:47.3]} 29... Rc8 {[%clk 0:00:15.2]} 30. g4 {[%clk 0:00:47.5]} 30...
Qe7 {[%clk 0:00:13.9]} 31. Kg2 {[%clk 0:00:30.9]} 31... Qg5 {[%clk 0:00:12.6]}
32. Kg3 {[%clk 0:00:31.2]} 32... Bxh5 {[%clk 0:00:09.1]} 33. f3 {[%clk
0:00:14.9]} 33... fxg4 {[%clk 0:00:07.2]} 34. fxg4 {[%clk 0:00:15.2]} 34... Rf8
{[%clk 0:00:06.9]} 35. Rf1 {[%clk 0:00:13.2]} 35... Be8 {[%clk 0:00:05.7]} 36.
Nxe6 {[%clk 0:00:12.5]} 36... Qe3+ {[%clk 0:00:03.1]} 37. Qxe3 {[%clk
0:00:11.9]} 1-0

[Event "*** SCC Grand Prix: Titled Tuesday Blitz"]
[Site "Chess.com"]
[Date "2020.06.02"]
[Round "4"]
[White "politeplayer"]
[Black "hellokostya"]
[Result "0-1"]
[WhiteElo "2237"]
[BlackElo "2434"]
[TimeControl "180+1"]
[EndTime "10:39:53 PDT"]
[Termination "hellokostya won by resignation"]

1. e4 {[%clk 0:03:00.9]} 1... Nc6 {[%clk 0:02:56.2]} 2. Nf3 {[%clk 0:02:59.3]}
2... d6 {[%clk 0:02:54.8]} 3. Bb5 {[%clk 0:02:57.6]} 3... a6 {[%clk 0:02:53.4]}
4. Bxc6+ {[%clk 0:02:56.8]} 4... bxc6 {[%clk 0:02:51.3]} 5. h3 {[%clk
0:02:56.8]} 5... g6 {[%clk 0:02:44.5]} 6. d4 {[%clk 0:02:55.9]} 6... Bg7 {[%clk
0:02:41.2]} 7. Bg5 {[%clk 0:02:49.5]} 7... Nf6 {[%clk 0:02:39.8]} 8. Nc3 {[%clk
0:02:46.8]} 8... O-O {[%clk 0:02:38.6]} 9. Qd2 {[%clk 0:02:45.7]} 9... Rb8
{[%clk 0:02:36.5]} 10. O-O-O {[%clk 0:02:38.8]} 10... c5 {[%clk 0:02:25.9]} 11.
e5 {[%clk 0:02:18.3]} 11... Nd7 {[%clk 0:02:03.4]} 12. Bh6 {[%clk 0:01:47.6]}
12... Bb7 {[%clk 0:01:31.8]} 13. Bxg7 {[%clk 0:01:43.7]} 13... Kxg7 {[%clk
0:01:09.3]} 14. h4 {[%clk 0:01:35.4]} 14... Bxf3 {[%clk 0:01:04.6]} 15. gxf3
{[%clk 0:01:31.1]} 15... cxd4 {[%clk 0:01:03.7]} 16. Qxd4 {[%clk 0:01:28]} 16...
Nxe5 {[%clk 0:01:03.3]} 17. h5 {[%clk 0:01:19.4]} 17... c5 {[%clk 0:00:48.9]}
18. Qh4 {[%clk 0:01:04.9]} 18... Rb4 {[%clk 0:00:39.3]} 19. Ne4 {[%clk
0:00:55.2]} 19... Nxf3 {[%clk 0:00:32.5]} 20. Qf4 {[%clk 0:00:46.2]} 20... g5
{[%clk 0:00:18.1]} 21. h6+ {[%clk 0:00:39.7]} 21... Kh8 {[%clk 0:00:16.1]} 22.
Qxf3 {[%clk 0:00:39.1]} 22... Rg8 {[%clk 0:00:15.3]} 23. Qc3+ {[%clk 0:00:28.3]}
23... f6 {[%clk 0:00:15.2]} 24. Rhe1 {[%clk 0:00:21.9]} 24... Rb8 {[%clk
0:00:14.2]} 25. Qh3 {[%clk 0:00:15.7]} 25... Qf8 {[%clk 0:00:13.7]} 26. Ng3
{[%clk 0:00:13.5]} 26... Rg6 {[%clk 0:00:13.1]} 27. Nf5 {[%clk 0:00:13.3]} 27...
Re8 {[%clk 0:00:10.8]} 28. Re2 {[%clk 0:00:11.8]} 28... g4 {[%clk 0:00:10]} 29.
Qc3 {[%clk 0:00:10.6]} 29... Rg5 {[%clk 0:00:08.9]} 30. Ng3 {[%clk 0:00:07.8]}
30... Qxh6 {[%clk 0:00:08.1]} 31. Rde1 {[%clk 0:00:07.2]} 31... Qg7 {[%clk
0:00:07.9]} 32. Ne4 {[%clk 0:00:06.2]} 32... Re5 {[%clk 0:00:07.8]} 33. Nxd6
{[%clk 0:00:05.2]} 33... exd6 {[%clk 0:00:07.1]} 34. f4 {[%clk 0:00:04.1]} 34...
Rxe2 {[%clk 0:00:06.2]} 35. Rxe2 {[%clk 0:00:04.3]} 35... Rxe2 {[%clk
0:00:06.9]} 36. b3 {[%clk 0:00:04.5]} 36... g3 {[%clk 0:00:05.6]} 37. Kb2 {[%clk
0:00:04.2]} 37... g2 {[%clk 0:00:05.6]} 38. Qh3 {[%clk 0:00:02.7]} 38... g1=Q
{[%clk 0:00:04.7]} 0-1

[Event "*** SCC Grand Prix: Titled Tuesday Blitz"]
[Site "Chess.com"]
[Date "2020.06.02"]
[Round "4"]
[White "ENEASZ"]
[Black "Nara_Kh"]
[Result "0-1"]
[WhiteElo "2479"]
[BlackElo "2326"]
[TimeControl "180+1"]
[EndTime "10:39:54 PDT"]
[Termination "Nara_Kh won by resignation"]

1. e4 {[%clk 0:03:00.9]} 1... d6 {[%clk 0:02:58.2]} 2. d4 {[%clk 0:03:00.8]}
2... Nf6 {[%clk 0:02:57.9]} 3. Nc3 {[%clk 0:03:01.3]} 3... g6 {[%clk 0:02:57.8]}
4. f4 {[%clk 0:03:00.8]} 4... Bg7 {[%clk 0:02:57.4]} 5. Nf3 {[%clk 0:03:01.4]}
5... c5 {[%clk 0:02:57.4]} 6. dxc5 {[%clk 0:03:00.8]} 6... Qa5 {[%clk
0:02:56.6]} 7. cxd6 {[%clk 0:02:56.3]} 7... Nxe4 {[%clk 0:02:54.9]} 8. Bd3
{[%clk 0:02:50.8]} 8... Nxc3 {[%clk 0:02:39.7]} 9. bxc3 {[%clk 0:02:50.4]} 9...
Qxc3+ {[%clk 0:02:34.8]} 10. Kf2 {[%clk 0:02:41.5]} 10... Qxa1 {[%clk
0:02:28.5]} 11. dxe7 {[%clk 0:02:41.6]} 11... Nc6 {[%clk 0:02:19.9]} 12. Re1
{[%clk 0:02:37.5]} 12... Be6 {[%clk 0:02:02.2]} 13. Ng5 {[%clk 0:02:37.4]} 13...
Nxe7 {[%clk 0:01:33.8]} 14. Bb5+ {[%clk 0:02:32.3]} 14... Kf8 {[%clk 0:01:13]}
15. Qf3 {[%clk 0:02:10.7]} 15... Qd4+ {[%clk 0:00:36.9]} 16. Be3 {[%clk
0:02:07.2]} 16... Qd6 {[%clk 0:00:36.8]} 17. c4 {[%clk 0:01:55.4]} 17... h6
{[%clk 0:00:32.7]} 18. Ne4 {[%clk 0:01:39.5]} 18... Qb4 {[%clk 0:00:24]} 19. Bc5
{[%clk 0:01:33.3]} 19... Qa5 {[%clk 0:00:20.6]} 20. Re2 {[%clk 0:01:21.5]} 20...
a6 {[%clk 0:00:20.3]} 21. Nd6 {[%clk 0:01:10.1]} 21... axb5 {[%clk 0:00:19.7]}
22. f5 {[%clk 0:01:10.6]} 22... gxf5 {[%clk 0:00:19]} 23. Nxf5 {[%clk
0:01:10.4]} 23... Bxf5 {[%clk 0:00:16.9]} 24. Rxe7 {[%clk 0:01:04.4]} 24... Kg8
{[%clk 0:00:14.6]} 25. Qxf5 {[%clk 0:01:04]} 25... Qd2+ {[%clk 0:00:14.4]} 26.
Kf3 {[%clk 0:00:30.3]} 26... Qc3+ {[%clk 0:00:14.2]} 27. Ke4 {[%clk 0:00:17.9]}
27... Qf6 {[%clk 0:00:13.1]} 28. Qxf6 {[%clk 0:00:17.7]} 28... Bxf6 {[%clk
0:00:13.7]} 29. Rxb7 {[%clk 0:00:18.6]} 29... bxc4 {[%clk 0:00:13.7]} 30. Kf5
{[%clk 0:00:17.3]} 30... Kg7 {[%clk 0:00:13.9]} 31. Rb6 {[%clk 0:00:16.9]} 31...
Rac8 {[%clk 0:00:12]} 32. Be3 {[%clk 0:00:13.3]} 32... Ba1 {[%clk 0:00:11]} 33.
Rb1 {[%clk 0:00:12]} 33... Bc3 {[%clk 0:00:10]} 34. Rc1 {[%clk 0:00:04.8]} 34...
Bb2 {[%clk 0:00:10.2]} 35. Rb1 {[%clk 0:00:05]} 35... c3 {[%clk 0:00:10.5]} 36.
Bd4+ {[%clk 0:00:05.4]} 36... Kh7 {[%clk 0:00:10.7]} 37. Bxh8 {[%clk 0:00:04.1]}
37... Kxh8 {[%clk 0:00:09.8]} 0-1

[Event "*** SCC Grand Prix: Titled Tuesday Blitz"]
[Site "Chess.com"]
[Date "2020.06.02"]
[Round "4"]
[White "wonderfultime"]
[Black "carlesdc96"]
[Result "1-0"]
[WhiteElo "2987"]
[BlackElo "2761"]
[TimeControl "180+1"]
[EndTime "10:39:55 PDT"]
[Termination "wonderfultime won by resignation"]

1. d4 {[%clk 0:03:00.9]} 1... e6 {[%clk 0:03:00.3]} 2. Nf3 {[%clk 0:03:00.9]}
2... Nf6 {[%clk 0:02:59.9]} 3. Bf4 {[%clk 0:03:00.3]} 3... c5 {[%clk 0:02:59.9]}
4. c3 {[%clk 0:03:00.5]} 4... Nc6 {[%clk 0:03:00.1]} 5. e3 {[%clk 0:03:01]} 5...
d5 {[%clk 0:03:00.4]} 6. Nbd2 {[%clk 0:03:01.1]} 6... Bd6 {[%clk 0:03:00.9]} 7.
Bg3 {[%clk 0:03:01.5]} 7... O-O {[%clk 0:03:00.8]} 8. Bb5 {[%clk 0:03:02.1]}
8... Be7 {[%clk 0:03:00.3]} 9. Bd3 {[%clk 0:03:01.8]} 9... b6 {[%clk 0:03:00.4]}
10. O-O {[%clk 0:03:00.2]} 10... Bb7 {[%clk 0:03:00.5]} 11. a4 {[%clk
0:02:57.5]} 11... h6 {[%clk 0:02:58.5]} 12. h3 {[%clk 0:02:55.1]} 12... Bd6
{[%clk 0:02:41.9]} 13. Bh4 {[%clk 0:02:44.5]} 13... Be7 {[%clk 0:02:29.1]} 14.
Qe2 {[%clk 0:02:42.6]} 14... Re8 {[%clk 0:02:21.9]} 15. Rfd1 {[%clk 0:02:33.1]}
15... Nd7 {[%clk 0:02:11.2]} 16. Bg3 {[%clk 0:02:30.4]} 16... Bf6 {[%clk
0:02:08.5]} 17. Ba6 {[%clk 0:01:57.7]} 17... Qc8 {[%clk 0:02:02.8]} 18. Bxb7
{[%clk 0:01:34.2]} 18... Qxb7 {[%clk 0:02:03.7]} 19. Qb5 {[%clk 0:01:34.7]}
19... a6 {[%clk 0:01:55.4]} 20. Qb3 {[%clk 0:01:33.5]} 20... c4 {[%clk 0:01:54]}
21. Qc2 {[%clk 0:01:33.6]} 21... b5 {[%clk 0:01:54.2]} 22. e4 {[%clk 0:01:33.5]}
22... Nb6 {[%clk 0:01:39.6]} 23. a5 {[%clk 0:01:26.8]} 23... Na4 {[%clk
0:01:37.1]} 24. Re1 {[%clk 0:01:12.3]} 24... Nxa5 {[%clk 0:01:31.1]} 25. Re2
{[%clk 0:01:12.7]} 25... Nc6 {[%clk 0:01:17.3]} 26. Rae1 {[%clk 0:01:11.4]}
26... Red8 {[%clk 0:01:13.9]} 27. exd5 {[%clk 0:01:10.5]} 27... exd5 {[%clk
0:01:13.3]} 28. Ne5 {[%clk 0:01:10.1]} 28... Bxe5 {[%clk 0:01:02]} 29. Bxe5
{[%clk 0:01:06.4]} 29... Nb6 {[%clk 0:00:42.7]} 30. Nf1 {[%clk 0:01:06.8]} 30...
Re8 {[%clk 0:00:31.4]} 31. Ng3 {[%clk 0:01:02.3]} 31... Nxe5 {[%clk 0:00:25.8]}
32. Rxe5 {[%clk 0:01:01.6]} 32... Qd7 {[%clk 0:00:18.9]} 33. Qf5 {[%clk
0:01:00.8]} 33... Rxe5 {[%clk 0:00:17.5]} 34. Qxe5 {[%clk 0:01:01.7]} 34... f6
{[%clk 0:00:14.4]} 35. Qe2 {[%clk 0:00:54.1]} 35... Kf8 {[%clk 0:00:13.5]} 36.
Qf3 {[%clk 0:00:52.3]} 36... Re8 {[%clk 0:00:12.7]} 37. Ra1 {[%clk 0:00:52.8]}
37... Na4 {[%clk 0:00:11.8]} 38. Nh5 {[%clk 0:00:52.7]} 38... Re6 {[%clk
0:00:11.6]} 39. Nf4 {[%clk 0:00:52.6]} 39... Rd6 {[%clk 0:00:11.5]} 40. Re1
{[%clk 0:00:53]} 40... Nb6 {[%clk 0:00:10.8]} 41. Ng6+ {[%clk 0:00:49.3]} 41...
Kf7 {[%clk 0:00:08.3]} 42. Qh5 {[%clk 0:00:48.1]} 42... Kg8 {[%clk 0:00:07.2]}
43. Re7 {[%clk 0:00:48]} 43... Qd8 {[%clk 0:00:06.7]} 44. Qe2 {[%clk 0:00:41.4]}
44... Kh7 {[%clk 0:00:05.6]} 45. h4 {[%clk 0:00:24.5]} 45... Kxg6 {[%clk
0:00:03.2]} 46. Qg4+ {[%clk 0:00:24.2]} 1-0

[Event "*** SCC Grand Prix: Titled Tuesday Blitz"]
[Site "Chess.com"]
[Date "2020.06.02"]
[Round "4"]
[White "tigra"]
[Black "Sweafty"]
[Result "1-0"]
[WhiteElo "2723"]
[BlackElo "2508"]
[TimeControl "180+1"]
[EndTime "10:39:55 PDT"]
[Termination "tigra won by checkmate"]

1. e4 {[%clk 0:02:44.6]} 1... d6 {[%clk 0:02:54.4]} 2. d4 {[%clk 0:02:44.2]}
2... Nf6 {[%clk 0:02:55]} 3. Nc3 {[%clk 0:02:42.2]} 3... e5 {[%clk 0:02:55]} 4.
Nge2 {[%clk 0:02:40.3]} 4... Nbd7 {[%clk 0:02:54.4]} 5. h3 {[%clk 0:02:39.2]}
5... Be7 {[%clk 0:02:54.6]} 6. g4 {[%clk 0:02:39]} 6... O-O {[%clk 0:02:55]} 7.
Bg2 {[%clk 0:02:38.4]} 7... c6 {[%clk 0:02:55.2]} 8. a4 {[%clk 0:02:36.4]} 8...
a5 {[%clk 0:02:39.5]} 9. O-O {[%clk 0:02:36.2]} 9... exd4 {[%clk 0:02:39.3]} 10.
Nxd4 {[%clk 0:02:36]} 10... Nc5 {[%clk 0:02:39.9]} 11. Nde2 {[%clk 0:02:34]}
11... Qb6 {[%clk 0:02:38.5]} 12. b3 {[%clk 0:02:33.3]} 12... Re8 {[%clk
0:02:34]} 13. Be3 {[%clk 0:02:24.2]} 13... Qb4 {[%clk 0:02:26.8]} 14. Na2 {[%clk
0:02:23]} 14... Qb6 {[%clk 0:02:20.9]} 15. Nac3 {[%clk 0:02:17.3]} 15... Qb4
{[%clk 0:02:19.9]} 16. Na2 {[%clk 0:02:13.8]} 16... Qb6 {[%clk 0:02:18.9]} 17.
Ng3 {[%clk 0:02:12.8]} 17... Bf8 {[%clk 0:02:06.2]} 18. Nc3 {[%clk 0:02:01.8]}
18... Qb4 {[%clk 0:01:59]} 19. Bd2 {[%clk 0:02:00]} 19... Qb6 {[%clk 0:01:45.4]}
20. g5 {[%clk 0:01:52.6]} 20... Nfd7 {[%clk 0:01:42.9]} 21. Nce2 {[%clk
0:01:49.8]} 21... d5 {[%clk 0:01:35.8]} 22. exd5 {[%clk 0:01:49.3]} 22... cxd5
{[%clk 0:01:36.4]} 23. Bxd5 {[%clk 0:01:35.8]} 23... Ne5 {[%clk 0:01:36.3]} 24.
Nf4 {[%clk 0:01:23.4]} 24... Rd8 {[%clk 0:01:22.7]} 25. Be3 {[%clk 0:01:20.7]}
25... Ng6 {[%clk 0:01:13.4]} 26. Qh5 {[%clk 0:01:13.8]} 26... Qc7 {[%clk
0:00:47.2]} 27. Nge2 {[%clk 0:00:31]} 27... Bd6 {[%clk 0:00:41]} 28. Nxg6 {[%clk
0:00:27.8]} 28... hxg6 {[%clk 0:00:40.4]} 29. Qf3 {[%clk 0:00:28.3]} 29... Be5
{[%clk 0:00:29.9]} 30. Rad1 {[%clk 0:00:27.4]} 30... Bf5 {[%clk 0:00:26.8]} 31.
Ng3 {[%clk 0:00:25.9]} 31... Bxh3 {[%clk 0:00:25.8]} 32. Bxc5 {[%clk 0:00:23.7]}
32... Bxf1 {[%clk 0:00:22.1]} 33. Nxf1 {[%clk 0:00:23.8]} 33... Qxc5 {[%clk
0:00:18.7]} 34. Qxf7+ {[%clk 0:00:18.8]} 34... Kh7 {[%clk 0:00:18.9]} 35. Rd3
{[%clk 0:00:18.5]} 35... Bh2+ {[%clk 0:00:08.1]} 36. Nxh2 {[%clk 0:00:17.7]}
36... Qc8 {[%clk 0:00:05.1]} 37. Be4 {[%clk 0:00:14.5]} 37... Rxd3 {[%clk
0:00:04.7]} 38. Qxg6+ {[%clk 0:00:14.2]} 38... Kg8 {[%clk 0:00:05.2]} 39. Bxd3
{[%clk 0:00:14.5]} 39... Qh3 {[%clk 0:00:05.2]} 40. Bc4+ {[%clk 0:00:14.4]}
40... Kh8 {[%clk 0:00:05.5]} 41. Qe6 {[%clk 0:00:13.7]} 41... Rd8 {[%clk
0:00:05.6]} 42. Qxh3# {[%clk 0:00:13.6]} 1-0

[Event "*** SCC Grand Prix: Titled Tuesday Blitz"]
[Site "Chess.com"]
[Date "2020.06.02"]
[Round "4"]
[White "Redbandit87"]
[Black "Reader777"]
[Result "0-1"]
[WhiteElo "2344"]
[BlackElo "2597"]
[TimeControl "180+1"]
[EndTime "10:39:55 PDT"]
[Termination "Reader777 won by resignation"]

1. d4 {[%clk 0:03:00.9]} 1... Nf6 {[%clk 0:02:58.6]} 2. Bf4 {[%clk 0:03:00.3]}
2... e6 {[%clk 0:02:58.3]} 3. e3 {[%clk 0:03:00.2]} 3... c5 {[%clk 0:02:58.1]}
4. c3 {[%clk 0:02:59.5]} 4... Nc6 {[%clk 0:02:58.1]} 5. Nd2 {[%clk 0:02:59.8]}
5... d5 {[%clk 0:02:57.9]} 6. Bd3 {[%clk 0:02:58.4]} 6... Bd6 {[%clk 0:02:57.9]}
7. Bxd6 {[%clk 0:02:57.6]} 7... Qxd6 {[%clk 0:02:57.4]} 8. f4 {[%clk 0:02:58.5]}
8... O-O {[%clk 0:02:54.5]} 9. Ngf3 {[%clk 0:02:52.8]} 9... Ne7 {[%clk
0:02:54.3]} 10. O-O {[%clk 0:02:51.8]} 10... Nf5 {[%clk 0:02:52.5]} 11. Qe2
{[%clk 0:02:47.8]} 11... b6 {[%clk 0:02:47.5]} 12. Ne5 {[%clk 0:02:47.1]} 12...
Bb7 {[%clk 0:02:46.1]} 13. g4 {[%clk 0:02:45.6]} 13... Ne7 {[%clk 0:02:43.1]}
14. Qf3 {[%clk 0:02:37.9]} 14... g6 {[%clk 0:02:16.2]} 15. h4 {[%clk 0:02:27]}
15... h5 {[%clk 0:02:13.1]} 16. Rf2 {[%clk 0:02:11.9]} 16... cxd4 {[%clk
0:02:00.6]} 17. exd4 {[%clk 0:02:10.8]} 17... hxg4 {[%clk 0:01:35.5]} 18. Nxg4
{[%clk 0:02:06.7]} 18... Nxg4 {[%clk 0:01:27.5]} 19. Qxg4 {[%clk 0:02:07.6]}
19... Kg7 {[%clk 0:01:23.6]} 20. h5 {[%clk 0:01:52.8]} 20... Rg8 {[%clk
0:01:18.9]} 21. hxg6 {[%clk 0:01:50.8]} 21... Nxg6 {[%clk 0:01:12.1]} 22. f5
{[%clk 0:01:36.2]} 22... exf5 {[%clk 0:01:11.3]} 23. Qxf5 {[%clk 0:01:20.8]}
23... Qg3+ {[%clk 0:01:04.9]} 24. Rg2 {[%clk 0:01:19.4]} 24... Qxg2+ {[%clk
0:01:02.9]} 25. Kxg2 {[%clk 0:01:17.8]} 25... Nh4+ {[%clk 0:01:03.2]} 26. Kf2
{[%clk 0:01:14.7]} 26... Nxf5 {[%clk 0:01:04.1]} 27. Bxf5 {[%clk 0:01:15.2]}
27... Bc8 {[%clk 0:01:03.5]} 28. Bd3 {[%clk 0:01:08.2]} 28... Be6 {[%clk
0:01:02.3]} 29. Nf3 {[%clk 0:01:06.9]} 29... Rh8 {[%clk 0:01:01.6]} 30. Rg1+
{[%clk 0:01:06]} 30... Kf6 {[%clk 0:01:01.7]} 31. Rf1 {[%clk 0:00:56.9]} 31...
Ke7 {[%clk 0:01:00.5]} 32. Ke3 {[%clk 0:00:54.5]} 32... Rag8 {[%clk 0:00:58.9]}
33. b3 {[%clk 0:00:52.5]} 33... Rg2 {[%clk 0:00:57.6]} 34. c4 {[%clk 0:00:52.1]}
34... Rxa2 {[%clk 0:00:54.1]} 35. Kf4 {[%clk 0:00:37.2]} 35... Rb2 {[%clk
0:00:49.7]} 36. cxd5 {[%clk 0:00:36.5]} 36... Bxd5 {[%clk 0:00:48.9]} 37. Re1+
{[%clk 0:00:36.6]} 37... Kd6 {[%clk 0:00:47.3]} 38. Be4 {[%clk 0:00:26.2]} 38...
Re8 {[%clk 0:00:43]} 39. Ne5 {[%clk 0:00:14.9]} 39... f6 {[%clk 0:00:42.1]} 40.
Bxd5 {[%clk 0:00:12.3]} 40... fxe5+ {[%clk 0:00:41.4]} 41. dxe5+ {[%clk
0:00:12.2]} 41... Kxd5 {[%clk 0:00:41.4]} 42. Rd1+ {[%clk 0:00:13.1]} 42... Ke6
{[%clk 0:00:40.3]} 43. Rd6+ {[%clk 0:00:13]} 43... Ke7 {[%clk 0:00:40.4]} 44.
Rc6 {[%clk 0:00:13.4]} 44... Rxb3 {[%clk 0:00:40]} 45. Rc7+ {[%clk 0:00:13.3]}
45... Ke6 {[%clk 0:00:40.1]} 46. Rc6+ {[%clk 0:00:13.2]} 46... Kd5 {[%clk
0:00:39.9]} 47. Rd6+ {[%clk 0:00:13.5]} 47... Kc5 {[%clk 0:00:40]} 48. Rd7
{[%clk 0:00:12.8]} 48... a5 {[%clk 0:00:38.4]} 49. Kf5 {[%clk 0:00:10.8]} 49...
a4 {[%clk 0:00:38.5]} 50. e6 {[%clk 0:00:11.2]} 50... a3 {[%clk 0:00:38.5]} 51.
Ra7 {[%clk 0:00:10.5]} 51... Kb4 {[%clk 0:00:37.5]} 52. Ke5 {[%clk 0:00:10.5]}
52... b5 {[%clk 0:00:37.3]} 53. Kd6 {[%clk 0:00:10.8]} 53... Re3 {[%clk
0:00:36.9]} 0-1